{"text_format":"1","workbook":"xlsx","n_sheets":5,"sheets":["Notes","Summary","ICB","Organisations","BS"],"not_rendered":{"charts":0,"images":0,"macros":1,"external_links":1,"defined_names":4,"comments":0,"pivot_tables":0},"unopened":[],"bounds":{"document_bytes":16777216,"sheet_cells":100000,"rows_first":2000,"rows_last":500,"rows_between":2000,"halvings":0,"cell_chars":16384,"cell_head_chars":4096},"cells_cut":0,"cells_raw":0,"read":"whole","date_system":"1900"}

{"sheet":"Notes","index":0,"n_rows":2,"n_cols":8,"rows_kept":2,"cut":false,"hidden":false,"merged":[[1,1,1,4]]}
[]
[null,"Post-COVID clinic Friends and Family Test (FFT) data - December 2024",null,null,null,null,null,"  Show data for:"]

{"sheet":"Summary","index":1,"n_rows":7,"n_cols":10,"rows_kept":7,"cut":false,"hidden":false,"merged":[[2,1,3,1],[2,4,2,5],[2,6,2,7],[2,8,2,9]]}
[]
[]
[null,"FFT","Number of organisations submitting","Total responses to date","Responses",null,"Percentage Positive",null,"Percentage Negative"]
[null,null,"2024-12-01","2024-12-01","2024-12-01","2024-11-26","2024-12-01","2024-11-26","2024-12-01","2024-11-26"]
[null,"Post Covid Q1",66,31777,173,290,0.93063583815028905,0.97241379310344822,4.6242774566473986E-2,2.0689655172413793E-2]
[null,"Post Covid Q2",66,16444,150,232,0.98,0.97844827586206895,0.02,2.1551724137931036E-2]
[null,"Post Covid Q3",66,17165,149,232,0.99328859060402686,1,6.7114093959731542E-3,0]

{"sheet":"ICB","index":2,"n_rows":49,"n_cols":24,"rows_kept":49,"cut":false,"hidden":false,"merged":[[3,18,4,18],[3,19,4,19],[3,20,4,20],[3,21,3,23],[2,18,2,20],[2,21,2,23],[3,2,4,2],[3,3,4,3],[3,4,4,4],[3,5,3,10],[3,11,4,11],[3,12,4,12],[3,13,4,13],[3,14,4,14],[2,0,4,0],[2,1,4,1],[2,2,2,4],[2,5,2,10],[2,11,2,14],[2,15,2,17],[3,15,3,17]]}
[]
[]
["ICB Code","ICB Name","Question 1",null,null,"Question 1",null,null,null,null,null,"Question 2",null,null,null,"Question 2",null,null,"Question 3",null,null,"Question 3"]
[null,null,"Total Responses","Percentage Positive","Percentage Negative","Breakdown of Responses",null,null,null,null,null,"Total Responses","Total Eligible","Percentage Positive","Percentage Negative","Breakdown of Responses",null,null,"Total Responses","Percentage Positive","Percentage Negative","Breakdown of Responses"]
[null,null,null,null,null,"Very Good","Good","Neither Good nor Poor","Poor","Very Poor","Don't Know",null,null,null,null,"Yes definitely","Yes to some extent","No",null,null,null,"Yes definitely","Yes to some extent","No"]
[null,"England",173,0.93063583815028905,4.6242774566473986E-2,138,23,3,5,3,1,150,1658,0.98,0.02,129,18,3,149,0.99328859060402686,6.7114093959731542E-3,145,3,1]
[null,"Selection (excluding suppressed data)",{"$f":"SUBTOTAL(9,C8:C61)","v":173},{"$f":"IFERROR((F7+G7)/SUM(F7:K7), \"-\")","v":0.91891891891891897},{"$f":"IFERROR((I7+J7)/SUM(F7:K7), \"-\")","v":5.4054054054054057E-2},{"$f":"SUBTOTAL(9,F8:F61)","v":117},19,3,5,3,1,150,1658,{"$f":"IFERROR((P7+Q7)/SUM(P7:R7), \"-\")","v":0.97619047619047616},{"$f":"IFERROR(R7/SUM(P7:R7), \"-\")","v":2.3809523809523808E-2},107,16,3,{"$f":"SUBTOTAL(9,S8:S61)","v":149},{"$f":"IFERROR((V7+W7)/SUM(V7:X7), \"-\")","v":0.99199999999999999},{"$f":"IFERROR(X7/SUM(V7:X7), \"-\")","v":8.0000000000000002E-3},{"$f":"SUBTOTAL(9,V8:V61)","v":122},2,1]
["QE1","LANCASHIRE AND SOUTH CUMBRIA ICB",0,"NA","NA",0,0,0,0,0,0,0,0,"NA","NA",0,0,0,0,"NA","NA",0,0,0]
["QF7","SOUTH YORKSHIRE ICB",5,1,0,"*","*","*","*","*","*",4,286,"*","*","*","*","*",4,"*","*","*","*","*"]
["QGH","HEREFORDSHIRE AND WORCESTERSHIRE ICB",0,"NA","NA",0,0,0,0,0,0,0,0,"NA","NA",0,0,0,0,"NA","NA",0,0,0]
["QH8","MID AND SOUTH ESSEX ICB",0,"NA","NA",0,0,0,0,0,0,0,0,"NA","NA",0,0,0,0,"NA","NA",0,0,0]
["QHG","BEDFORDSHIRE, LUTON AND MILTON KEYNES ICB",9,1,0,8,1,0,0,0,0,9,47,1,0,9,0,0,9,1,0,9,0,0]
["QHL","BIRMINGHAM AND SOLIHULL ICB",2,"*","*","*","*","*","*","*","*",2,0,"*","*","*","*","*",2,"*","*","*","*","*"]
["QHM","NORTH EAST AND NORTH CUMBRIA ICB",5,1,0,3,2,0,0,0,0,3,27,"*","*",2,1,0,3,"*","*",3,0,0]
["QJ2","DERBY AND DERBYSHIRE ICB",0,"NA","NA",0,0,0,0,0,0,0,0,"NA","NA",0,0,0,0,"NA","NA",0,0,0]
["QJG","SUFFOLK AND NORTH EAST ESSEX ICB",0,"NA","NA",0,0,0,0,0,0,0,0,"NA","NA",0,0,0,0,"NA","NA",0,0,0]
["QJK","DEVON ICB",1,"*","*","*","*","*","*","*","*",1,1,"*","*","*","*","*",1,"*","*","*","*","*"]
["QJM","LINCOLNSHIRE ICB",4,"*","*","*","*","*","*","*","*",4,132,"*","*","*","*","*",4,"*","*","*","*","*"]
["QK1","LEICESTER, LEICESTERSHIRE AND RUTLAND ICB",1,"*","*","*","*","*","*","*","*",1,44,"*","*","*","*","*",1,"*","*","*","*","*"]
["QKK","SOUTH EAST LONDON ICB",0,"NA","NA",0,0,0,0,0,0,0,14,"NA","NA",0,0,0,0,"NA","NA",0,0,0]
["QKS","KENT AND MEDWAY ICB",5,1,0,2,3,0,0,0,0,5,14,1,0,3,2,0,5,1,0,5,0,0]
["QM7","HERTFORDSHIRE AND WEST ESSEX ICB",0,"NA","NA",0,0,0,0,0,0,0,0,"NA","NA",0,0,0,0,"NA","NA",0,0,0]
["QMF","NORTH EAST LONDON ICB",8,0.875,0,6,1,0,0,0,1,7,82,0.8571428571428571,0.14285714285714285,5,1,1,7,1,0,7,0,0]
["QMJ","NORTH CENTRAL LONDON ICB",0,"NA","NA",0,0,0,0,0,0,0,0,"NA","NA",0,0,0,0,"NA","NA",0,0,0]
["QMM","NORFOLK AND WAVENEY ICB",0,"NA","NA",0,0,0,0,0,0,0,0,"NA","NA",0,0,0,0,"NA","NA",0,0,0]
["QNC","STAFFORDSHIRE AND STOKE-ON-TRENT ICB",13,0.76923076923076927,0.23076923076923078,8,2,0,3,0,0,13,0,1,0,12,1,0,13,1,0,13,0,0]
["QNQ","FRIMLEY ICB",0,"NA","NA",0,0,0,0,0,0,0,0,"NA","NA",0,0,0,0,"NA","NA",0,0,0]
["QNX","SUSSEX ICB",2,"*","*","*","*","*","*","*","*",2,2,"*","*","*","*","*",2,"*","*","*","*","*"]
["QOC","SHROPSHIRE, TELFORD AND WREKIN ICB",1,"*","*","*","*","*","*","*","*",1,1,"*","*","*","*","*",1,"*","*","*","*","*"]
["QOP","GREATER MANCHESTER ICB",0,"NA","NA",0,0,0,0,0,0,2,73,"*","*",2,0,0,0,"NA","NA",0,0,0]
["QOQ","HUMBER AND NORTH YORKSHIRE ICB",0,"NA","NA",0,0,0,0,0,0,0,0,"NA","NA",0,0,0,0,"NA","NA",0,0,0]
["QOX","BATH AND NORTH EAST SOMERSET, SWINDON AND WILTSHIRE ICB",1,"*","*","*","*","*","*","*","*",1,86,"*","*","*","*","*",1,"*","*","*","*","*"]
["QPM","NORTHAMPTONSHIRE ICB",0,"NA","NA",0,0,0,0,0,0,0,0,"NA","NA",0,0,0,0,"NA","NA",0,0,0]
["QR1","GLOUCESTERSHIRE ICB",11,1,0,11,0,0,0,0,0,10,0,1,0,10,0,0,11,1,0,11,0,0]
["QRL","HAMPSHIRE AND ISLE OF WIGHT ICB",19,1,0,19,0,0,0,0,0,19,783,1,0,15,4,0,19,1,0,19,0,0]
["QRV","NORTH WEST LONDON ICB",0,"NA","NA",0,0,0,0,0,0,0,0,"NA","NA",0,0,0,0,"NA","NA",0,0,0]
["QSL","SOMERSET ICB",0,"NA","NA",0,0,0,0,0,0,0,0,"NA","NA",0,0,0,0,"NA","NA",0,0,0]
["QT1","NOTTINGHAM AND NOTTINGHAMSHIRE ICB",0,"NA","NA",0,0,0,0,0,0,0,3,"NA","NA",0,0,0,0,"NA","NA",0,0,0]
["QT6","CORNWALL AND THE ISLES OF SCILLY ICB",8,0.75,0.25,6,0,0,1,1,0,8,0,0.875,0.125,6,1,1,8,0.875,0.125,7,0,1]
["QU9","BUCKINGHAMSHIRE, OXFORDSHIRE AND BERKSHIRE WEST ICB",21,0.95238095238095233,4.7619047619047616E-2,16,4,0,0,1,0,21,2,1,0,17,4,0,21,1,0,21,0,0]
["QUA","BLACK COUNTRY ICB",0,"NA","NA",0,0,0,0,0,0,0,0,"NA","NA",0,0,0,0,"NA","NA",0,0,0]
["QUE","CAMBRIDGESHIRE AND PETERBOROUGH ICB",4,"*","*","*","*","*","*","*","*",4,4,"*","*","*","*","*",4,"*","*","*","*","*"]
["QUY","BRISTOL, NORTH SOMERSET AND SOUTH GLOUCESTERSHIRE ICB",0,"NA","NA",0,0,0,0,0,0,0,0,"NA","NA",0,0,0,0,"NA","NA",0,0,0]
["QVV","DORSET ICB",8,0.625,0.125,3,2,2,1,0,0,8,0,0.875,0.125,6,1,1,8,1,0,7,1,0]
["QWE","SOUTH WEST LONDON ICB",0,"NA","NA",0,0,0,0,0,0,0,0,"NA","NA",0,0,0,0,"NA","NA",0,0,0]
["QWO","WEST YORKSHIRE ICB",22,0.90909090909090906,4.5454545454545456E-2,17,3,1,0,1,0,21,46,1,0,20,1,0,21,1,0,20,1,0]
["QWU","COVENTRY AND WARWICKSHIRE ICB",4,"*","*","*","*","*","*","*","*",4,10,"*","*","*","*","*",4,"*","*","*","*","*"]
["QXU","SURREY HEARTLANDS ICB",0,"NA","NA",0,0,0,0,0,0,0,0,"NA","NA",0,0,0,0,"NA","NA",0,0,0]
["QYG","CHESHIRE AND MERSEYSIDE ICB",19,1,0,18,1,0,0,0,0,0,1,"NA","NA",0,0,0,0,"NA","NA",0,0,0]

{"sheet":"Organisations","index":3,"n_rows":72,"n_cols":33,"rows_kept":72,"cut":false,"hidden":false,"merged":[[3,16,3,18],[3,19,4,19],[3,20,4,20],[3,21,4,21],[3,22,3,24],[2,16,2,18],[2,19,2,21],[2,22,2,24],[2,25,3,32],[3,3,4,3],[3,4,4,4],[3,5,4,5],[3,6,3,11],[3,12,4,12],[3,13,4,13],[2,0,4,0],[2,1,4,1],[2,2,4,2],[2,3,2,5],[2,6,2,11],[2,12,2,15],[3,14,4,14],[3,15,4,15]]}
[]
[]
["ICB Code","Trust Code","Trust Name","Question 1",null,null,"Question 1",null,null,null,null,null,"Question 2",null,null,null,"Question 2",null,null,"Question 3",null,null,"Question 3",null,null,"Mode of Collection - Question 1"]
[null,null,null,"Total Responses","Percentage Positive","Percentage Negative","Breakdown of Responses",null,null,null,null,null,"Total Responses","Total Eligible","Percentage Positive","Percentage Negative","Breakdown of Responses",null,null,"Total Responses","Percentage Positive","Percentage Negative","Breakdown of Responses"]
[null,null,null,null,null,null,"Very Good","Good","Neither Good nor Poor","Poor","Very Poor","Don't Know",null,null,null,null,"Yes definitely","Yes to some extent","No",null,null,null,"Yes definitely","Yes to some extent","No","SMS","Smartphone","Smartphone After","Paper","Paper After","Telephone","Online","Other"]
[null,null,"England",173,0.93063583815028905,4.6242774566473986E-2,138,23,3,5,3,1,150,1658,0.98,0.02,129,18,3,149,0.99328859060402686,6.7114093959731542E-3,145,3,1,8,5,0,22,4,17,104,13]
[null,null,"Selection (excluding suppressed data)",{"$f":"SUBTOTAL(9,D8:D867)","v":173},{"$f":"IFERROR((G7+H7)/SUM(G7:L7), \"-\")","v":0.91608391608391604},{"$f":"IFERROR((J7+K7)/SUM(G7:L7), \"-\")","v":5.5944055944055944E-2},{"$f":"SUBTOTAL(9,G8:G867)","v":114},{"$f":"SUBTOTAL(9,H8:H867)","v":17},{"$f":"SUBTOTAL(9,I8:I867)","v":3},{"$f":"SUBTOTAL(9,J8:J867)","v":5},{"$f":"SUBTOTAL(9,K8:K867)","v":3},{"$f":"SUBTOTAL(9,L8:L867)","v":1},{"$f":"SUBTOTAL(9,M8:M867)","v":150},{"$f":"SUBTOTAL(9,N8:N867)","v":1658},{"$f":"IFERROR((Q7+R7)/SUM(Q7:S7), \"-\")","v":0.97520661157024791},{"$f":"IFERROR(S7/SUM(Q7:S7), \"-\")","v":2.4793388429752067E-2},{"$f":"SUBTOTAL(9,Q8:Q867)","v":103},{"$f":"SUBTOTAL(9,R8:R867)","v":15},{"$f":"SUBTOTAL(9,S8:S867)","v":3},{"$f":"SUBTOTAL(9,T8:T867)","v":149},{"$f":"IFERROR((W7+X7)/SUM(W7:Y7), \"-\")","v":0.99180327868852458},{"$f":"IFERROR(Y7/SUM(W7:Y7), \"-\")","v":8.1967213114754103E-3},{"$f":"SUBTOTAL(9,W8:W867)","v":119},2,1,3,0,0,20,0,13,94,13]
["QE1","RW5","LANCASHIRE & SOUTH CUMBRIA NHS FOUNDATION TRUST",0,"NA","NA",0,0,0,0,0,0,0,0,"NA","NA",0,0,0,0,"NA","NA",0,0,0,0,0,0,0,0,0,0,0]
["QF7","RXE","ROTHERHAM DONCASTER AND SOUTH HUMBER NHS FOUNDATION TRUST",1,"*","*","*","*","*","*","*","*",0,0,"NA","NA",0,0,0,0,"NA","NA",0,0,0,"*","*","*","*","*","*","*","*"]
["QF7","RHQ","SHEFFIELD TEACHING HOSPITALS NHS FOUNDATION TRUST",4,"*","*","*","*","*","*","*","*",4,286,"*","*","*","*","*",4,"*","*","*","*","*","*","*","*","*","*","*","*","*"]
["QF7","RFR","THE ROTHERHAM NHS FOUNDATION TRUST",0,"NA","NA",0,0,0,0,0,0,0,0,"NA","NA",0,0,0,0,"NA","NA",0,0,0,0,0,0,0,0,0,0,0]
["QHG","RD8","MILTON KEYNES UNIVERSITY HOSPITAL NHS FOUNDATION TRUST",9,1,0,8,1,0,0,0,0,9,47,1,0,9,0,0,9,1,0,9,0,0,0,0,0,0,0,0,9,0]
["QHL","RYW","BIRMINGHAM COMMUNITY HEALTHCARE NHS FOUNDATION TRUST",2,"*","*","*","*","*","*","*","*",2,0,"*","*","*","*","*",2,"*","*","*","*","*","*","*","*","*","*","*","*","*"]
["QHL","RXK","SANDWELL AND WEST BIRMINGHAM HOSPITALS NHS TRUST",0,"NA","NA",0,0,0,0,0,0,0,0,"NA","NA",0,0,0,0,"NA","NA",0,0,0,0,0,0,0,0,0,0,0]
["QHM","RXP","COUNTY DURHAM AND DARLINGTON NHS FOUNDATION TRUST",0,"NA","NA",0,0,0,0,0,0,0,0,"NA","NA",0,0,0,0,"NA","NA",0,0,0,0,0,0,0,0,0,0,0]
["QHM","RR7","GATESHEAD HEALTH NHS FOUNDATION TRUST",0,"NA","NA",0,0,0,0,0,0,0,0,"NA","NA",0,0,0,0,"NA","NA",0,0,0,0,0,0,0,0,0,0,0]
["QHM","RNN","NORTH CUMBRIA INTEGRATED CARE NHS FOUNDATION TRUST",1,"*","*","*","*","*","*","*","*",1,4,"*","*","*","*","*",1,"*","*","*","*","*","*","*","*","*","*","*","*","*"]
["QHM","RVW","NORTH TEES AND HARTLEPOOL NHS FOUNDATION TRUST",3,"*","*","*","*","*","*","*","*",1,8,"*","*","*","*","*",1,"*","*","*","*","*","*","*","*","*","*","*","*","*"]
["QHM","RTF","NORTHUMBRIA HEALTHCARE NHS FOUNDATION TRUST",0,"NA","NA",0,0,0,0,0,0,0,0,"NA","NA",0,0,0,0,"NA","NA",0,0,0,0,0,0,0,0,0,0,0]
["QHM","RTR","SOUTH TEES HOSPITALS NHS FOUNDATION TRUST",0,"NA","NA",0,0,0,0,0,0,0,0,"NA","NA",0,0,0,0,"NA","NA",0,0,0,0,0,0,0,0,0,0,0]
["QHM","R0B","SOUTH TYNESIDE AND SUNDERLAND NHS FOUNDATION TRUST",1,"*","*","*","*","*","*","*","*",1,0,"*","*","*","*","*",1,"*","*","*","*","*","*","*","*","*","*","*","*","*"]
["QHM","RTD","THE NEWCASTLE UPON TYNE HOSPITALS NHS FOUNDATION TRUST",0,"NA","NA",0,0,0,0,0,0,0,15,"NA","NA",0,0,0,0,"NA","NA",0,0,0,0,0,0,0,0,0,0,0]
["QJ2","RY8","DERBYSHIRE COMMUNITY HEALTH SERVICES NHS FOUNDATION TRUST",0,"NA","NA",0,0,0,0,0,0,0,0,"NA","NA",0,0,0,0,"NA","NA",0,0,0,0,0,0,0,0,0,0,0]
["QJG","RDE","EAST SUFFOLK AND NORTH ESSEX NHS FOUNDATION TRUST",0,"NA","NA",0,0,0,0,0,0,0,0,"NA","NA",0,0,0,0,"NA","NA",0,0,0,0,0,0,0,0,0,0,0]
["QJG","NQA","PROVIDE",0,"NA","NA",0,0,0,0,0,0,0,0,"NA","NA",0,0,0,0,"NA","NA",0,0,0,0,0,0,0,0,0,0,0]
["QJK","NR5","LIVEWELL SOUTHWEST",1,"*","*","*","*","*","*","*","*",1,1,"*","*","*","*","*",1,"*","*","*","*","*","*","*","*","*","*","*","*","*"]
["QJM","RY5","LINCOLNSHIRE COMMUNITY HEALTH SERVICES NHS TRUST",4,"*","*","*","*","*","*","*","*",4,132,"*","*","*","*","*",4,"*","*","*","*","*","*","*","*","*","*","*","*","*"]
["QK1","RWE","UNIVERSITY HOSPITALS OF LEICESTER NHS TRUST",1,"*","*","*","*","*","*","*","*",1,44,"*","*","*","*","*",1,"*","*","*","*","*","*","*","*","*","*","*","*","*"]
["QKK","RJ1","GUY'S AND ST THOMAS' NHS FOUNDATION TRUST",0,"NA","NA",0,0,0,0,0,0,0,14,"NA","NA",0,0,0,0,"NA","NA",0,0,0,0,0,0,0,0,0,0,0]
["QKS","DWN","WEST KENT PRIMARY CARE",5,1,0,2,3,0,0,0,0,5,14,1,0,3,2,0,5,1,0,5,0,0,0,0,0,0,0,0,5,0]
["QMF","RWK","EAST LONDON NHS FOUNDATION TRUST",0,"NA","NA",0,0,0,0,0,0,0,75,"NA","NA",0,0,0,0,"NA","NA",0,0,0,0,0,0,0,0,0,0,0]
["QMF","RQX","HOMERTON HEALTHCARE NHS FOUNDATION TRUST",8,0.875,0,6,1,0,0,0,1,7,7,0.8571428571428571,0.14285714285714285,5,1,1,7,1,0,7,0,0,0,0,0,0,0,0,8,0]
["QMM","RY3","NORFOLK COMMUNITY HEALTH AND CARE NHS TRUST",0,"NA","NA",0,0,0,0,0,0,0,0,"NA","NA",0,0,0,0,"NA","NA",0,0,0,0,0,0,0,0,0,0,0]
["QNC","RRE","MIDLANDS PARTNERSHIP UNIVERSITY NHS FOUNDATION TRUST",13,0.76923076923076927,0.23076923076923078,8,2,0,3,0,0,13,0,1,0,12,1,0,13,1,0,13,0,0,0,0,0,0,0,13,0,0]
["QNX","RXC","EAST SUSSEX HEALTHCARE NHS TRUST",0,"NA","NA",0,0,0,0,0,0,0,0,"NA","NA",0,0,0,0,"NA","NA",0,0,0,0,0,0,0,0,0,0,0]
["QNX","RDR","SUSSEX COMMUNITY NHS FOUNDATION TRUST",2,"*","*","*","*","*","*","*","*",2,2,"*","*","*","*","*",2,"*","*","*","*","*","*","*","*","*","*","*","*","*"]
["QOC","R1D","SHROPSHIRE COMMUNITY HEALTH NHS TRUST",1,"*","*","*","*","*","*","*","*",1,1,"*","*","*","*","*",1,"*","*","*","*","*","*","*","*","*","*","*","*","*"]
["QOP","RMC","BOLTON NHS FOUNDATION TRUST",0,"NA","NA",0,0,0,0,0,0,0,0,"NA","NA",0,0,0,0,"NA","NA",0,0,0,0,0,0,0,0,0,0,0]
["QOP","R0A","MANCHESTER UNIVERSITY NHS FOUNDATION TRUST",0,"NA","NA",0,0,0,0,0,0,2,69,"*","*","*","*","*",0,"NA","NA",0,0,0,0,0,0,0,0,0,0,0]
["QOP","RM3","NORTHERN CARE ALLIANCE NHS FOUNDATION TRUST",0,"NA","NA",0,0,0,0,0,0,0,0,"NA","NA",0,0,0,0,"NA","NA",0,0,0,0,0,0,0,0,0,0,0]
["QOP","RWJ","STOCKPORT NHS FOUNDATION TRUST",0,"NA","NA",0,0,0,0,0,0,0,0,"NA","NA",0,0,0,0,"NA","NA",0,0,0,0,0,0,0,0,0,0,0]
["QOP","RMP","TAMESIDE AND GLOSSOP INTEGRATED CARE NHS FOUNDATION TRUST",0,"NA","NA",0,0,0,0,0,0,0,4,"NA","NA",0,0,0,0,"NA","NA",0,0,0,0,0,0,0,0,0,0,0]
["QOP","RRF","WRIGHTINGTON, WIGAN AND LEIGH NHS FOUNDATION TRUST",0,"NA","NA",0,0,0,0,0,0,0,0,"NA","NA",0,0,0,0,"NA","NA",0,0,0,0,0,0,0,0,0,0,0]
["QOQ","RJL","NORTHERN LINCOLNSHIRE AND GOOLE NHS FOUNDATION TRUST",0,"NA","NA",0,0,0,0,0,0,0,0,"NA","NA",0,0,0,0,"NA","NA",0,0,0,0,0,0,0,0,0,0,0]
["QOQ","RCB","YORK AND SCARBOROUGH TEACHING HOSPITALS NHS FOUNDATION TRUST",0,"NA","NA",0,0,0,0,0,0,0,0,"NA","NA",0,0,0,0,"NA","NA",0,0,0,0,0,0,0,0,0,0,0]
["QOX","AXG","WILTSHIRE HEALTH & CARE",1,"*","*","*","*","*","*","*","*",1,86,"*","*","*","*","*",1,"*","*","*","*","*","*","*","*","*","*","*","*","*"]
["QPM","RP1","NORTHAMPTONSHIRE HEALTHCARE NHS FOUNDATION TRUST",0,"NA","NA",0,0,0,0,0,0,0,0,"NA","NA",0,0,0,0,"NA","NA",0,0,0,0,0,0,0,0,0,0,0]
["QR1","RTQ","GLOUCESTERSHIRE HEALTH AND CARE NHS FOUNDATION TRUST",11,1,0,11,0,0,0,0,0,10,0,1,0,10,0,0,11,1,0,11,0,0,0,0,0,0,0,0,11,0]
["QRL","RW1","HAMPSHIRE AND ISLE OF WIGHT HEALTHCARE NHS FOUNDATION TRUST",19,1,0,19,0,0,0,0,0,19,783,1,0,15,4,0,19,1,0,19,0,0,0,0,0,0,0,0,19,0]
["QRV","RYJ","IMPERIAL COLLEGE HEALTHCARE NHS TRUST",0,"NA","NA",0,0,0,0,0,0,0,0,"NA","NA",0,0,0,0,"NA","NA",0,0,0,0,0,0,0,0,0,0,0]
["QRV","R1K","LONDON NORTH WEST UNIVERSITY HEALTHCARE NHS TRUST",0,"NA","NA",0,0,0,0,0,0,0,0,"NA","NA",0,0,0,0,"NA","NA",0,0,0,0,0,0,0,0,0,0,0]
["QT1","NR3","NOTTINGHAM CITYCARE PARTNERSHIP",0,"NA","NA",0,0,0,0,0,0,0,3,"NA","NA",0,0,0,0,"NA","NA",0,0,0,0,0,0,0,0,0,0,0]
["QT6","REF","ROYAL CORNWALL HOSPITALS NHS TRUST",8,0.75,0.25,6,0,0,1,1,0,8,0,0.875,0.125,6,1,1,8,0.875,0.125,7,0,1,0,0,0,0,0,0,8,0]
["QU9","RXQ","BUCKINGHAMSHIRE HEALTHCARE NHS TRUST",0,"NA","NA",0,0,0,0,0,0,0,2,"NA","NA",0,0,0,0,"NA","NA",0,0,0,0,0,0,0,0,0,0,0]
["QU9","RTH","OXFORD UNIVERSITY HOSPITALS NHS FOUNDATION TRUST",21,0.95238095238095233,4.7619047619047616E-2,16,4,0,0,1,0,21,0,1,0,17,4,0,21,1,0,21,0,0,1,0,0,20,0,0,0,0]
["QUA","RL4","THE ROYAL WOLVERHAMPTON NHS TRUST",0,"NA","NA",0,0,0,0,0,0,0,0,"NA","NA",0,0,0,0,"NA","NA",0,0,0,0,0,0,0,0,0,0,0]
["QUA","RBK","WALSALL HEALTHCARE NHS TRUST",0,"NA","NA",0,0,0,0,0,0,0,0,"NA","NA",0,0,0,0,"NA","NA",0,0,0,0,0,0,0,0,0,0,0]
["QUE","RT1","CAMBRIDGESHIRE AND PETERBOROUGH NHS FOUNDATION TRUST",4,"*","*","*","*","*","*","*","*",4,4,"*","*","*","*","*",4,"*","*","*","*","*","*","*","*","*","*","*","*","*"]
["QVV","RDY","DORSET HEALTHCARE UNIVERSITY NHS FOUNDATION TRUST",8,0.625,0.125,3,2,2,1,0,0,8,0,0.875,0.125,6,1,1,8,1,0,7,1,0,0,0,0,0,0,0,8,0]
["QWE","RAX","KINGSTON AND RICHMOND NHS FOUNDATION TRUST",0,"NA","NA",0,0,0,0,0,0,0,0,"NA","NA",0,0,0,0,"NA","NA",0,0,0,0,0,0,0,0,0,0,0]
["QWE","RJ7","ST GEORGE'S UNIVERSITY HOSPITALS NHS FOUNDATION TRUST",0,"NA","NA",0,0,0,0,0,0,0,0,"NA","NA",0,0,0,0,"NA","NA",0,0,0,0,0,0,0,0,0,0,0]
["QWO","RCF","AIREDALE NHS FOUNDATION TRUST",0,"NA","NA",0,0,0,0,0,0,0,0,"NA","NA",0,0,0,0,"NA","NA",0,0,0,0,0,0,0,0,0,0,0]
["QWO","RAE","BRADFORD TEACHING HOSPITALS NHS FOUNDATION TRUST",0,"NA","NA",0,0,0,0,0,0,0,0,"NA","NA",0,0,0,0,"NA","NA",0,0,0,0,0,0,0,0,0,0,0]
["QWO","RWY","CALDERDALE AND HUDDERSFIELD NHS FOUNDATION TRUST",7,1,0,7,0,0,0,0,0,7,7,1,0,7,0,0,7,1,0,7,0,0,0,0,0,0,0,0,7,0]
["QWO","RXF","MID YORKSHIRE TEACHING NHS TRUST",15,0.8666666666666667,6.6666666666666666E-2,10,3,1,0,1,0,14,39,1,0,13,1,0,14,1,0,13,1,0,2,0,0,0,0,0,0,13]
["QWU","RLT","GEORGE ELIOT HOSPITAL NHS TRUST",0,"NA","NA",0,0,0,0,0,0,0,0,"NA","NA",0,0,0,0,"NA","NA",0,0,0,0,0,0,0,0,0,0,0]
["QWU","RJC","SOUTH WARWICKSHIRE UNIVERSITY NHS FOUNDATION TRUST",4,"*","*","*","*","*","*","*","*",4,4,"*","*","*","*","*",4,"*","*","*","*","*","*","*","*","*","*","*","*","*"]
["QWU","RKB","UNIVERSITY HOSPITALS COVENTRY AND WARWICKSHIRE NHS TRUST",0,"NA","NA",0,0,0,0,0,0,0,6,"NA","NA",0,0,0,0,"NA","NA",0,0,0,0,0,0,0,0,0,0,0]
["QYG","RXA","CHESHIRE AND WIRRAL PARTNERSHIP NHS FOUNDATION TRUST",0,"NA","NA",0,0,0,0,0,0,0,0,"NA","NA",0,0,0,0,"NA","NA",0,0,0,0,0,0,0,0,0,0,0]
["QYG","RJN","EAST CHESHIRE NHS TRUST",0,"NA","NA",0,0,0,0,0,0,0,1,"NA","NA",0,0,0,0,"NA","NA",0,0,0,0,0,0,0,0,0,0,0]
["QYG","RW4","MERSEY CARE NHS FOUNDATION TRUST",19,1,0,18,1,0,0,0,0,0,0,"NA","NA",0,0,0,0,"NA","NA",0,0,0,0,0,0,0,0,0,19,0]
["QYG","RBT","MID CHESHIRE HOSPITALS NHS FOUNDATION TRUST",0,"NA","NA",0,0,0,0,0,0,0,0,"NA","NA",0,0,0,0,"NA","NA",0,0,0,0,0,0,0,0,0,0,0]

{"sheet":"BS","index":4,"n_rows":66,"n_cols":59,"rows_kept":66,"cut":false,"hidden":true,"merged":[]}
[null,"Sort","Region (LO) Code","Region (LO) name","Trust code","Trust name","Site Code","Site Name",null,"Sort Lists:","Sort range…","Sort range…","Sort range…","Reference Region List:","Code…","Name…","Linked Region List:","Code…","Name…","Reference Lists:","Code…","Code…","Name…","Code…","Name…","Trusts Linked Lists:","Code…","Name…","Sites Linked Lists:",null,null,null,null,"CSV Headers"]
["Region (LO)",1,1,1,"-","-","-","-",null,null,"ICB Code","ICB Code","ICB Code",null,"QE1","LANCASHIRE AND SOUTH CUMBRIA ICB",null,"QE1","LANCASHIRE AND SOUTH CUMBRIA ICB",null,"QE1","RW5","LANCASHIRE & SOUTH CUMBRIA NHS FOUNDATION TRUST",null,null,null,"AXG","AIREDALE NHS FOUNDATION TRUST",null,null,null,null,null,"Breakdown","ICB Code","Trust Code","Trust Name","Q1 - Total Responses","Q1 - Percentage Positive","Q1 - Percentage Negative","Q1 - Very Good","Q1 - Good","Q1 - Neither Good nor Poor","Q1 - Poor","Q1 - Very Poor","Q1 - Don't Know","Q2 - Total Responses","Q2 - Total Eligible","Q2 - Percentage Positive","Q2 - Percentage Negative","Q2 - Yes definitely","Q2 - Yes to some extent","Q2 - No","Q3 - Total Responses","Q3 - Percentage Positive","Q3 - Percentage Negative","Q3 - Yes definitely","Q3 - Yes to some extent","Q3 - No"]
["Trusts",1,1,1,1,1,"-","-",null,null,"ICB Name","Organisation Code","Trust Code",null,"QF7","SOUTH YORKSHIRE ICB",null,"QF7","SOUTH YORKSHIRE ICB",null,"QF7","RXE","ROTHERHAM DONCASTER AND SOUTH HUMBER NHS FOUNDATION TRUST",null,null,null,"DWN","BIRMINGHAM COMMUNITY HEALTHCARE NHS FOUNDATION TRUST"]
["Site",1,1,1,1,1,1,1,null,null,"Total Responses - Q1","Organisation Name","Trust Name",null,"QGH","HEREFORDSHIRE AND WORCESTERSHIRE ICB",null,"QGH","HEREFORDSHIRE AND WORCESTERSHIRE ICB",null,"QF7","RHQ","SHEFFIELD TEACHING HOSPITALS NHS FOUNDATION TRUST",null,null,null,"NQA","BOLTON NHS FOUNDATION TRUST",null,null,null,null,null,"Collection Mode","ICB Code","Trust Code","Trust Name","SMS","Smartphone","Smartphone After","Paper","Paper After","Telephone","Online","Other"]
[null,null,null,null,null,null,null,null,null,null,"Percentage Positive - Q1","Total Responses - Q1","Site Code",null,"QH8","MID AND SOUTH ESSEX ICB",null,"QH8","MID AND SOUTH ESSEX ICB",null,"QF7","RFR","THE ROTHERHAM NHS FOUNDATION TRUST",null,null,null,"NR3","BRADFORD TEACHING HOSPITALS NHS FOUNDATION TRUST"]
[null,null,null,null,null,null,null,null,null,null,"Percentage Negative - Q1","Percentage Positive - Q1","Site Name",null,"QHG","BEDFORDSHIRE, LUTON AND MILTON KEYNES ICB",null,"QHG","BEDFORDSHIRE, LUTON AND MILTON KEYNES ICB",null,"QHG","RD8","MILTON KEYNES UNIVERSITY HOSPITAL NHS FOUNDATION TRUST",null,null,null,"NR5","BUCKINGHAMSHIRE HEALTHCARE NHS TRUST"]
[null,null,null,null,null,null,null,null,null,null,"Very Good - Q1","Percentage Negative - Q1","Total Responses",null,"QHL","BIRMINGHAM AND SOLIHULL ICB",null,"QHL","BIRMINGHAM AND SOLIHULL ICB",null,"QHL","RYW","BIRMINGHAM COMMUNITY HEALTHCARE NHS FOUNDATION TRUST",null,null,null,"R0A","CALDERDALE AND HUDDERSFIELD NHS FOUNDATION TRUST"]
[null,null,null,null,null,null,null,null,null,null,"Good - Q1","Very Good - Q1","Total Eligible",null,"QHM","NORTH EAST AND NORTH CUMBRIA ICB",null,"QHM","NORTH EAST AND NORTH CUMBRIA ICB",null,"QHL","RXK","SANDWELL AND WEST BIRMINGHAM HOSPITALS NHS TRUST",null,null,null,"R0B","CAMBRIDGESHIRE AND PETERBOROUGH NHS FOUNDATION TRUST"]
[null,null,null,null,null,null,null,null,null,null,"Neither Good nor Poor - Q1","Good - Q1","Percentage Positive",null,"QJ2","DERBY AND DERBYSHIRE ICB",null,"QJ2","DERBY AND DERBYSHIRE ICB",null,"QHM","RXP","COUNTY DURHAM AND DARLINGTON NHS FOUNDATION TRUST",null,null,null,"R1D","CHESHIRE AND WIRRAL PARTNERSHIP NHS FOUNDATION TRUST"]
[null,null,null,null,null,null,null,null,null,null,"Poor - Q1","Neither Good nor Poor - Q1","Percentage Negative",null,"QJG","SUFFOLK AND NORTH EAST ESSEX ICB",null,"QJG","SUFFOLK AND NORTH EAST ESSEX ICB",null,"QHM","RR7","GATESHEAD HEALTH NHS FOUNDATION TRUST",null,null,null,"R1K","COUNTY DURHAM AND DARLINGTON NHS FOUNDATION TRUST"]
[null,null,null,null,null,null,null,null,null,null,"Very Poor - Q1","Poor - Q1","Very Good",null,"QJK","DEVON ICB",null,"QJK","DEVON ICB",null,"QHM","RNN","NORTH CUMBRIA INTEGRATED CARE NHS FOUNDATION TRUST",null,null,null,"RAE","DERBYSHIRE COMMUNITY HEALTH SERVICES NHS FOUNDATION TRUST"]
[null,null,null,null,null,null,null,null,null,null,"Don't Know - Q1","Very Poor - Q1","Good",null,"QJM","LINCOLNSHIRE ICB",null,"QJM","LINCOLNSHIRE ICB",null,"QHM","RVW","NORTH TEES AND HARTLEPOOL NHS FOUNDATION TRUST",null,null,null,"RAX","DORSET HEALTHCARE UNIVERSITY NHS FOUNDATION TRUST"]
[null,null,null,null,null,null,null,null,null,null,"Total Responses - Q2","Don't Know - Q1","Neither Good nor Poor",null,"QK1","LEICESTER, LEICESTERSHIRE AND RUTLAND ICB",null,"QK1","LEICESTER, LEICESTERSHIRE AND RUTLAND ICB",null,"QHM","RTF","NORTHUMBRIA HEALTHCARE NHS FOUNDATION TRUST",null,null,null,"RBK","EAST CHESHIRE NHS TRUST"]
[null,null,null,null,null,null,null,null,null,null,"Total Eligible - Q2","Total Responses - Q2","Poor",null,"QKK","SOUTH EAST LONDON ICB",null,"QKK","SOUTH EAST LONDON ICB",null,"QHM","RTR","SOUTH TEES HOSPITALS NHS FOUNDATION TRUST",null,null,null,"RBT","EAST LONDON NHS FOUNDATION TRUST"]
[null,null,null,null,null,null,null,null,null,null,"Percentage Positive - Q2","Total Eligible - Q2","Very Poor",null,"QKS","KENT AND MEDWAY ICB",null,"QKS","KENT AND MEDWAY ICB",null,"QHM","R0B","SOUTH TYNESIDE AND SUNDERLAND NHS FOUNDATION TRUST",null,null,null,"RCB","EAST SUFFOLK AND NORTH ESSEX NHS FOUNDATION TRUST"]
[null,null,null,null,null,null,null,null,null,null,"Percentage Negative - Q2","Percentage Positive - Q2","Don't Know",null,"QM7","HERTFORDSHIRE AND WEST ESSEX ICB",null,"QM7","HERTFORDSHIRE AND WEST ESSEX ICB",null,"QHM","RTD","THE NEWCASTLE UPON TYNE HOSPITALS NHS FOUNDATION TRUST",null,null,null,"RCF","EAST SUSSEX HEALTHCARE NHS TRUST"]
[null,null,null,null,null,null,null,null,null,null,"Yes definitely - Q2","Percentage Negative - Q2",null,null,"QMF","NORTH EAST LONDON ICB",null,"QMF","NORTH EAST LONDON ICB",null,"QJ2","RY8","DERBYSHIRE COMMUNITY HEALTH SERVICES NHS FOUNDATION TRUST",null,null,null,"RD8","GATESHEAD HEALTH NHS FOUNDATION TRUST"]
[null,null,null,null,null,null,null,null,null,null,"Yes to some extent - Q2","Yes definitely - Q2",null,null,"QMJ","NORTH CENTRAL LONDON ICB",null,"QMJ","NORTH CENTRAL LONDON ICB",null,"QJG","RDE","EAST SUFFOLK AND NORTH ESSEX NHS FOUNDATION TRUST",null,null,null,"RDE","GEORGE ELIOT HOSPITAL NHS TRUST"]
[null,null,null,null,null,null,null,null,null,null,"No - Q2","Yes to some extent - Q2",null,null,"QMM","NORFOLK AND WAVENEY ICB",null,"QMM","NORFOLK AND WAVENEY ICB",null,"QJG","NQA","PROVIDE",null,null,null,"RDR","GLOUCESTERSHIRE HEALTH AND CARE NHS FOUNDATION TRUST"]
[null,null,null,null,null,null,null,null,null,null,"Total Responses - Q3","No - Q2",null,null,"QNC","STAFFORDSHIRE AND STOKE-ON-TRENT ICB",null,"QNC","STAFFORDSHIRE AND STOKE-ON-TRENT ICB",null,"QJK","NR5","LIVEWELL SOUTHWEST",null,null,null,"RDY","GUY'S AND ST THOMAS' NHS FOUNDATION TRUST"]
[null,null,null,null,null,null,null,null,null,null,"Percentage Positive - Q3","Total Responses - Q3",null,null,"QNQ","FRIMLEY ICB",null,"QNQ","FRIMLEY ICB",null,"QJM","RY5","LINCOLNSHIRE COMMUNITY HEALTH SERVICES NHS TRUST",null,null,null,"REF","HAMPSHIRE AND ISLE OF WIGHT HEALTHCARE NHS FOUNDATION TRUST"]
[null,null,null,null,null,null,null,null,null,null,"Percentage Negative - Q3","Percentage Positive - Q3",null,null,"QNX","SUSSEX ICB",null,"QNX","SUSSEX ICB",null,"QK1","RWE","UNIVERSITY HOSPITALS OF LEICESTER NHS TRUST",null,null,null,"RFR","HOMERTON HEALTHCARE NHS FOUNDATION TRUST"]
[null,null,null,null,null,null,null,null,null,null,"Yes definitely - Q3","Percentage Negative - Q3",null,null,"QOC","SHROPSHIRE, TELFORD AND WREKIN ICB",null,"QOC","SHROPSHIRE, TELFORD AND WREKIN ICB",null,"QKK","RJ1","GUY'S AND ST THOMAS' NHS FOUNDATION TRUST",null,null,null,"RHQ","IMPERIAL COLLEGE HEALTHCARE NHS TRUST"]
[null,null,null,null,null,null,null,null,null,null,"Yes to some extent - Q3","Yes definitely - Q3",null,null,"QOP","GREATER MANCHESTER ICB",null,"QOP","GREATER MANCHESTER ICB",null,"QKS","DWN","WEST KENT PRIMARY CARE",null,null,null,"RJ1","KINGSTON AND RICHMOND NHS FOUNDATION TRUST"]
[null,null,null,null,null,null,null,null,null,null,"No - Q3","Yes to some extent - Q3",null,null,"QOQ","HUMBER AND NORTH YORKSHIRE ICB",null,"QOQ","HUMBER AND NORTH YORKSHIRE ICB",null,"QMF","RWK","EAST LONDON NHS FOUNDATION TRUST",null,null,null,"RJ7","LANCASHIRE & SOUTH CUMBRIA NHS FOUNDATION TRUST"]
[null,null,null,null,null,null,null,null,null,null,null,"No - Q3",null,null,"QOX","BATH AND NORTH EAST SOMERSET, SWINDON AND WILTSHIRE ICB",null,"QOX","BATH AND NORTH EAST SOMERSET, SWINDON AND WILTSHIRE ICB",null,"QMF","RQX","HOMERTON HEALTHCARE NHS FOUNDATION TRUST",null,null,null,"RJC","LINCOLNSHIRE COMMUNITY HEALTH SERVICES NHS TRUST"]
[null,null,null,null,null,null,null,null,null,null,null,"SMS - Q1",null,null,"QPM","NORTHAMPTONSHIRE ICB",null,"QPM","NORTHAMPTONSHIRE ICB",null,"QMM","RY3","NORFOLK COMMUNITY HEALTH AND CARE NHS TRUST",null,null,null,"RJL","LIVEWELL SOUTHWEST"]
[null,null,null,null,null,null,null,null,null,null,null,"Smartphone - Q1",null,null,"QR1","GLOUCESTERSHIRE ICB",null,"QR1","GLOUCESTERSHIRE ICB",null,"QNC","RRE","MIDLANDS PARTNERSHIP UNIVERSITY NHS FOUNDATION TRUST",null,null,null,"RJN","LONDON NORTH WEST UNIVERSITY HEALTHCARE NHS TRUST"]
[null,null,null,null,null,null,null,null,null,null,null,"Smartphone After - Q1",null,null,"QRL","HAMPSHIRE AND ISLE OF WIGHT ICB",null,"QRL","HAMPSHIRE AND ISLE OF WIGHT ICB",null,"QNX","RXC","EAST SUSSEX HEALTHCARE NHS TRUST",null,null,null,"RKB","MANCHESTER UNIVERSITY NHS FOUNDATION TRUST"]
[null,null,null,null,null,null,null,null,null,null,null,"Paper - Q1",null,null,"QRV","NORTH WEST LONDON ICB",null,"QRV","NORTH WEST LONDON ICB",null,"QNX","RDR","SUSSEX COMMUNITY NHS FOUNDATION TRUST",null,null,null,"RL4","MERSEY CARE NHS FOUNDATION TRUST"]
[null,null,null,null,null,null,null,null,null,null,null,"Paper After - Q1",null,null,"QSL","SOMERSET ICB",null,"QSL","SOMERSET ICB",null,"QOC","R1D","SHROPSHIRE COMMUNITY HEALTH NHS TRUST",null,null,null,"RLT","MID CHESHIRE HOSPITALS NHS FOUNDATION TRUST"]
[null,null,null,null,null,null,null,null,null,null,null,"Telephone - Q1",null,null,"QT1","NOTTINGHAM AND NOTTINGHAMSHIRE ICB",null,"QT1","NOTTINGHAM AND NOTTINGHAMSHIRE ICB",null,"QOP","RMC","BOLTON NHS FOUNDATION TRUST",null,null,null,"RM3","MID YORKSHIRE TEACHING NHS TRUST"]
[null,null,null,null,null,null,null,null,null,null,null,"Online - Q1",null,null,"QT6","CORNWALL AND THE ISLES OF SCILLY ICB",null,"QT6","CORNWALL AND THE ISLES OF SCILLY ICB",null,"QOP","R0A","MANCHESTER UNIVERSITY NHS FOUNDATION TRUST",null,null,null,"RMC","MIDLANDS PARTNERSHIP UNIVERSITY NHS FOUNDATION TRUST"]
[null,null,null,null,null,null,null,null,null,null,null,"Other - Q1",null,null,"QU9","BUCKINGHAMSHIRE, OXFORDSHIRE AND BERKSHIRE WEST ICB",null,"QU9","BUCKINGHAMSHIRE, OXFORDSHIRE AND BERKSHIRE WEST ICB",null,"QOP","RM3","NORTHERN CARE ALLIANCE NHS FOUNDATION TRUST",null,null,null,"RMP","MILTON KEYNES UNIVERSITY HOSPITAL NHS FOUNDATION TRUST"]
[null,null,null,null,null,null,null,null,null,null,null,"SMS - Q2",null,null,"QUA","BLACK COUNTRY ICB",null,"QUA","BLACK COUNTRY ICB",null,"QOP","RWJ","STOCKPORT NHS FOUNDATION TRUST",null,null,null,"RNN","NORFOLK COMMUNITY HEALTH AND CARE NHS TRUST"]
[null,null,null,null,null,null,null,null,null,null,null,"Smartphone - Q2",null,null,"QUE","CAMBRIDGESHIRE AND PETERBOROUGH ICB",null,"QUE","CAMBRIDGESHIRE AND PETERBOROUGH ICB",null,"QOP","RMP","TAMESIDE AND GLOSSOP INTEGRATED CARE NHS FOUNDATION TRUST",null,null,null,"RP1","NORTH CUMBRIA INTEGRATED CARE NHS FOUNDATION TRUST"]
[null,null,null,null,null,null,null,null,null,null,null,"Smartphone After - Q2",null,null,"QUY","BRISTOL, NORTH SOMERSET AND SOUTH GLOUCESTERSHIRE ICB",null,"QUY","BRISTOL, NORTH SOMERSET AND SOUTH GLOUCESTERSHIRE ICB",null,"QOP","RRF","WRIGHTINGTON, WIGAN AND LEIGH NHS FOUNDATION TRUST",null,null,null,"RQX","NORTH TEES AND HARTLEPOOL NHS FOUNDATION TRUST"]
[null,null,null,null,null,null,null,null,null,null,null,"Paper - Q2",null,null,"QVV","DORSET ICB",null,"QVV","DORSET ICB",null,"QOQ","RJL","NORTHERN LINCOLNSHIRE AND GOOLE NHS FOUNDATION TRUST",null,null,null,"RR7","NORTHAMPTONSHIRE HEALTHCARE NHS FOUNDATION TRUST"]
[null,null,null,null,null,null,null,null,null,null,null,"Paper After - Q2",null,null,"QWE","SOUTH WEST LONDON ICB",null,"QWE","SOUTH WEST LONDON ICB",null,"QOQ","RCB","YORK AND SCARBOROUGH TEACHING HOSPITALS NHS FOUNDATION TRUST",null,null,null,"RRE","NORTHERN CARE ALLIANCE NHS FOUNDATION TRUST"]
[null,null,null,null,null,null,null,null,null,null,null,"Telephone - Q2",null,null,"QWO","WEST YORKSHIRE ICB",null,"QWO","WEST YORKSHIRE ICB",null,"QOX","AXG","WILTSHIRE HEALTH & CARE",null,null,null,"RRF","NORTHERN LINCOLNSHIRE AND GOOLE NHS FOUNDATION TRUST"]
[null,null,null,null,null,null,null,null,null,null,null,"Online - Q2",null,null,"QWU","COVENTRY AND WARWICKSHIRE ICB",null,"QWU","COVENTRY AND WARWICKSHIRE ICB",null,"QPM","RP1","NORTHAMPTONSHIRE HEALTHCARE NHS FOUNDATION TRUST",null,null,null,"RT1","NORTHUMBRIA HEALTHCARE NHS FOUNDATION TRUST"]
[null,null,null,null,null,null,null,null,null,null,null,"Other - Q2",null,null,"QXU","SURREY HEARTLANDS ICB",null,"QXU","SURREY HEARTLANDS ICB",null,"QR1","RTQ","GLOUCESTERSHIRE HEALTH AND CARE NHS FOUNDATION TRUST",null,null,null,"RTD","NOTTINGHAM CITYCARE PARTNERSHIP"]
[null,null,null,null,null,null,null,null,null,null,null,"SMS - Q3",null,null,"QYG","CHESHIRE AND MERSEYSIDE ICB",null,"QYG","CHESHIRE AND MERSEYSIDE ICB",null,"QRL","RW1","HAMPSHIRE AND ISLE OF WIGHT HEALTHCARE NHS FOUNDATION TRUST",null,null,null,"RTF","OXFORD UNIVERSITY HOSPITALS NHS FOUNDATION TRUST"]
[null,null,null,null,null,null,null,null,null,null,null,"Smartphone - Q3",null,null,null,null,null,null,null,null,"QRV","RYJ","IMPERIAL COLLEGE HEALTHCARE NHS TRUST",null,null,null,"RTH","PROVIDE"]
[null,null,null,null,null,null,null,null,null,null,null,"Smartphone After - Q3",null,null,null,null,null,null,null,null,"QRV","R1K","LONDON NORTH WEST UNIVERSITY HEALTHCARE NHS TRUST",null,null,null,"RTQ","ROTHERHAM DONCASTER AND SOUTH HUMBER NHS FOUNDATION TRUST"]
[null,null,null,null,null,null,null,null,null,null,null,"Paper - Q3",null,null,null,null,null,null,null,null,"QT1","NR3","NOTTINGHAM CITYCARE PARTNERSHIP",null,null,null,"RTR","ROYAL CORNWALL HOSPITALS NHS TRUST"]
[null,null,null,null,null,null,null,null,null,null,null,"Paper After - Q3",null,null,null,null,null,null,null,null,"QT6","REF","ROYAL CORNWALL HOSPITALS NHS TRUST",null,null,null,"RVW","SANDWELL AND WEST BIRMINGHAM HOSPITALS NHS TRUST"]
[null,null,null,null,null,null,null,null,null,null,null,"Telephone - Q3",null,null,null,null,null,null,null,null,"QU9","RXQ","BUCKINGHAMSHIRE HEALTHCARE NHS TRUST",null,null,null,"RW1","SHEFFIELD TEACHING HOSPITALS NHS FOUNDATION TRUST"]
[null,null,null,null,null,null,null,null,null,null,null,"Online - Q3",null,null,null,null,null,null,null,null,"QU9","RTH","OXFORD UNIVERSITY HOSPITALS NHS FOUNDATION TRUST",null,null,null,"RW4","SHROPSHIRE COMMUNITY HEALTH NHS TRUST"]
[null,null,null,null,null,null,null,null,null,null,null,"Other - Q3",null,null,null,null,null,null,null,null,"QUA","RL4","THE ROYAL WOLVERHAMPTON NHS TRUST",null,null,null,"RW5","SOUTH TEES HOSPITALS NHS FOUNDATION TRUST"]
[null,null,null,null,null,null,null,null,null,null,null,null,null,null,null,null,null,null,null,null,"QUA","RBK","WALSALL HEALTHCARE NHS TRUST",null,null,null,"RWE","SOUTH TYNESIDE AND SUNDERLAND NHS FOUNDATION TRUST"]
[null,null,null,null,null,null,null,null,null,null,null,null,null,null,null,null,null,null,null,null,"QUE","RT1","CAMBRIDGESHIRE AND PETERBOROUGH NHS FOUNDATION TRUST",null,null,null,"RWJ","SOUTH WARWICKSHIRE UNIVERSITY NHS FOUNDATION TRUST"]
[null,null,null,null,null,null,null,null,null,null,null,null,null,null,null,null,null,null,null,null,"QVV","RDY","DORSET HEALTHCARE UNIVERSITY NHS FOUNDATION TRUST",null,null,null,"RWK","ST GEORGE'S UNIVERSITY HOSPITALS NHS FOUNDATION TRUST"]
[null,null,null,null,null,null,null,null,null,null,null,null,null,null,null,null,null,null,null,null,"QWE","RAX","KINGSTON AND RICHMOND NHS FOUNDATION TRUST",null,null,null,"RWY","STOCKPORT NHS FOUNDATION TRUST"]
[null,null,null,null,null,null,null,null,null,null,null,null,null,null,null,null,null,null,null,null,"QWE","RJ7","ST GEORGE'S UNIVERSITY HOSPITALS NHS FOUNDATION TRUST",null,null,null,"RXA","SUSSEX COMMUNITY NHS FOUNDATION TRUST"]
[null,null,null,null,null,null,null,null,null,null,null,null,null,null,null,null,null,null,null,null,"QWO","RCF","AIREDALE NHS FOUNDATION TRUST",null,null,null,"RXC","TAMESIDE AND GLOSSOP INTEGRATED CARE NHS FOUNDATION TRUST"]
[null,null,null,null,null,null,null,null,null,null,null,null,null,null,null,null,null,null,null,null,"QWO","RAE","BRADFORD TEACHING HOSPITALS NHS FOUNDATION TRUST",null,null,null,"RXE","THE NEWCASTLE UPON TYNE HOSPITALS NHS FOUNDATION TRUST"]
[null,null,null,null,null,null,null,null,null,null,null,null,null,null,null,null,null,null,null,null,"QWO","RWY","CALDERDALE AND HUDDERSFIELD NHS FOUNDATION TRUST",null,null,null,"RXF","THE ROTHERHAM NHS FOUNDATION TRUST"]
[null,null,null,null,null,null,null,null,null,null,null,null,null,null,null,null,null,null,null,null,"QWO","RXF","MID YORKSHIRE TEACHING NHS TRUST",null,null,null,"RXK","THE ROYAL WOLVERHAMPTON NHS TRUST"]
[null,null,null,null,null,null,null,null,null,null,null,null,null,null,null,null,null,null,null,null,"QWU","RLT","GEORGE ELIOT HOSPITAL NHS TRUST",null,null,null,"RXP","UNIVERSITY HOSPITALS COVENTRY AND WARWICKSHIRE NHS TRUST"]
[null,null,null,null,null,null,null,null,null,null,null,null,null,null,null,null,null,null,null,null,"QWU","RJC","SOUTH WARWICKSHIRE UNIVERSITY NHS FOUNDATION TRUST",null,null,null,"RXQ","UNIVERSITY HOSPITALS OF LEICESTER NHS TRUST"]
[null,null,null,null,null,null,null,null,null,null,null,null,null,null,null,null,null,null,null,null,"QWU","RKB","UNIVERSITY HOSPITALS COVENTRY AND WARWICKSHIRE NHS TRUST",null,null,null,"RY3","WALSALL HEALTHCARE NHS TRUST"]
[null,null,null,null,null,null,null,null,null,null,null,null,null,null,null,null,null,null,null,null,"QYG","RXA","CHESHIRE AND WIRRAL PARTNERSHIP NHS FOUNDATION TRUST",null,null,null,"RY5","WEST KENT PRIMARY CARE"]
[null,null,null,null,null,null,null,null,null,null,null,null,null,null,null,null,null,null,null,null,"QYG","RJN","EAST CHESHIRE NHS TRUST",null,null,null,"RY8","WILTSHIRE HEALTH & CARE"]
[null,null,null,null,null,null,null,null,null,null,null,null,null,null,null,null,null,null,null,null,"QYG","RW4","MERSEY CARE NHS FOUNDATION TRUST",null,null,null,"RYJ","WRIGHTINGTON, WIGAN AND LEIGH NHS FOUNDATION TRUST"]
[null,null,null,null,null,null,null,null,null,null,null,null,null,null,null,null,null,null,null,null,"QYG","RBT","MID CHESHIRE HOSPITALS NHS FOUNDATION TRUST",null,null,null,"RYW","YORK AND SCARBOROUGH TEACHING HOSPITALS NHS FOUNDATION TRUST"]